Cogmind - Beta 11.1 @@@ ROGUE MODE // 2022.06.17 @ 16:19:36 Player: btmk16 Result: Destroyed by as-86444 with Assembled Blade Performance ------------- Evolutions (0) 0 Regions Visited (2) 400 Robots Destroyed (35) 175 Value Destroyed (876) 876 Prototype IDs (0) 0 Alien Tech Used (0) 0 Bonus (56) 56 TOTAL SCORE: 1507 Bonus ------- High Alert Combat Kills 56 Cogmind --------- Core Integrity 0/250 Matter 300/300 Energy 93/100 System Corruption 1% Temperature Cool (0) Movement Core (700) Ox13 Location -10/Mines Parts ------- > --- POWER (1) -------- (None) > --- PROPULSION (2) --- (None) > --- UTILITY (2) ------ High-capacity Storage Unit > --- WEAPON (2) ------- Medium Laser > --- INVENTORY (20) --- Ion Engine Light Treads Aluminum Leg Aluminum Leg Aluminum Leg Aluminum Leg Wheel Wheel Compact Wheel Heat Sink Small Storage Unit High-capacity Matter Pod (200) High-capacity Matter Pod (200) Improved Targeting Computer Improved Targeting Computer EM Pulse Gun Particle Gun Peak State ------------ > --- POWER ------------ Ion Engine > --- PROPULSION ------- Wheel Compact Wheel > --- UTILITY ---------- Heat Sink High-capacity Storage Unit > --- WEAPON ----------- Particle Gun Light Assault Rifle > --- INVENTORY -------- Ion Engine Light Treads Light Treads Aluminum Leg Aluminum Leg Aluminum Leg Aluminum Leg Small Storage Unit Improved Targeting Computer Improved Targeting Computer EM Pulse Gun Medium Laser [Rating: 9] Favorites ----------- Power Ion Engine Engine Ion Engine Propulsion Light Treads Treads Light Treads Leg Aluminum Leg Wheel Wheel Utility High-capacity Storage Unit Device Heat Sink Storage High-capacity Storage Unit Weapon Particle Gun Energy Gun Particle Gun Ballistic Gun Light Assault Rifle Build | -11 -10 -10 ------- Run | Scr Mat Min Slots Evolved . | . . . Power . | . . . Propulsion . | . . . Utility . | . . . Weapon . | . . . Parts Attached 14 | . 13 1 Power 2 | . 2 . Engine 2 | . 2 . Core . | . . . Reactor . | . . . Propulsion 7 | . 7 . Treads 2 | . 2 . Leg 3 | . 3 . Wheel 2 | . 2 . Hover . | . . . Flight . | . . . Utility 2 | . 2 . Device 1 | . 1 . Storage 1 | . 1 . Processor . | . . . Hackware . | . . . Protection . | . . . Artifact . | . . . Weapon 3 | . 2 1 Energy Gun 3 | . 2 1 Energy Cannon . | . . . Ballistic Gun . | . . . Ballistic Cannon . | . . . Launcher . | . . . Special Weapon . | . . . Impact Weapon . | . . . Slashing Weapon . | . . . Piercing Weapon . | . . . Special Melee Weapon . | . . . Unidentified Prototypes . | . . . Parts Lost 10 | . 4 6 Power 2 | . 1 1 Propulsion 4 | . 2 2 Utility 1 | . . 1 Weapon 3 | . 1 2 Highest Loss Streak 5 | . 4 5 To Critical Strikes . | . . . Average Slot Usage (%) 95 | . 95 96 Engine 13 | . 14 13 Treads 17 | . 14 27 Leg 5 | . 6 . Wheel 5 | . 6 . Device 10 | . 10 13 Storage 14 | . 14 14 Energy Gun 22 | . 21 26 Ballistic Gun 5 | . 6 . Naked Turns . | . . . Heaviest Build 50 | 13 50 50 Greatest Support 40 | 20 40 40 Greatest Overweight (x) 1 | . 1 1 Average Overweight (x) . | . . 1 Largest Inventory Capacity 20 | . 20 20 Average Capacity 17 | . 17 20 Most Carried 17 | . 14 17 Average Carried 12 | . 11 16 Final Capacity 20 | 8 20 20 Final Carried 17 | 6 14 17 Class Distribution -------------------- 100% | Mutant Dominant Class ---------------- Mutant | -10/Materials Mutant | -10/Mines Resources | -11 -10 -10 ----------- Run | Scr Mat Min Matter Collected 426 | 200 197 29 Remotely . | . . . Salvage Created 1158 | . 1018 140 Parts 68 | . 62 6 Haulers Intercepted 2 | . 2 . Recyclers Shooed . | . . . Parts Field Recycled . | . . . Retrieved Matter . | . . . Parts Self-Destructed . | . . . Prevented . | . . . Kills | -11 -10 -10 ------- Run | Scr Mat Min Combat Hostiles Destroyed 29 | . 25 4 Guns 28 | . 25 3 Classes Destroyed 7 | . 5 2 Worker 3 | . 3 . Hauler 2 | . 2 . Recycler 1 | . . 1 Watcher 1 | . 1 . Swarmer 6 | . 6 . Grunt 22 | . 19 3 Assembled 1 | . . 1 Best Kill Streak 5 | . 5 2 Combat Bots Only 5 | . 5 2 Max Kills in Single Turn 2 | . 2 1 Gunslinging 1 | . 1 . Exploded . | . . . Melee . | . . . Uniques/NPCs Destroyed . | . . . Combat | -11 -10 -10 -------- Run | Scr Mat Min Damage Taken 1249 | . 629 620 Core 283 | . 84 199 Absorbed by Shields . | . . . Core Remaining (%) 100 | 100 . . Volleys Fired 123 | . 90 33 Largest 2 | . 2 2 Hottest 105 | . 105 105 Shots Fired 219 | . 175 44 Gun 219 | . 175 44 Cannon . | . . . Launcher . | . . . Special . | . . . Kinetic 72 | . 72 . Thermal 147 | . 103 44 Explosive . | . . . Electromagnetic . | . . . Robot Hit Streak 13 | . 13 10 Robot Miss Streak 4 | . 4 2 Penetration Max . | . . . Secondary Targets 3 | . 3 . Max Gunslinging Chain 1 | . 1 . Shots Hit Robots 148 | . 115 33 Core Hits 60 | . 51 9 Critical Kills . | . . . Critical Parts Destroyed 1 | . 1 . Critical Strikes 9 | . 8 1 Burn 8 | . 7 1 Destroy 1 | . 1 . Melee Attacks . | . . . Impact . | . . . Slashing . | . . . Piercing . | . . . Sneak Attacks . | . . . Combat Hostiles . | . . . Follow-up Attacks . | . . . Damage Inflicted 1868 | . 1420 448 Guns 1868 | . 1420 448 Cannons . | . . . Explosions . | . . . Melee . | . . . Ramming . | . . . Kinetic 383 | . 383 . Thermal 1485 | . 1037 448 Explosive . | . . . Electromagnetic . | . . . Impact . | . . . Slashing . | . . . Piercing . | . . . Highest Corruption 1 | . 1 1 Average Corruption 1 | . 1 1 Corruption Purged . | . . . Corruption Blocked . | . . . Effects 12 | . 6 6 Message Errors 1 | . . 1 Matter Fused 5 | . 3 2 Heat Flow Errors 1 | . 1 . Energy Discharges 2 | . 1 1 Data Loss (minor) 1 | . . 1 Misfires 1 | . 1 . Weapon Failures 1 | . . 1 Overload Shots . | . . . Overflow Damage . | . . . Projectiles . | . . . Explosions . | . . . Melee . | . . . Knockbacks . | . . . Impact . | . . . Kinetic . | . . . Secondary . | . . . Self-Inflicted Damage . | . . . Shots . | . . . Rammed . | . . . Targets Rammed . | . . . Kicked . | . . . Crushed . | . . . Highest Temperature 278 | . 224 278 Average Temperature 70 | . 60 135 Received Heat Transfer 492 | . 321 171 Effects 1 | . 1 . Interference 1 | . 1 . Siege Activations . | . . . Robots Corrupted . | . . . Combat Hostiles . | . . . Parts Fried . | . . . Impact Corruptions . | . . . Robots Melted . | . . . Combat Hostiles . | . . . Parts Melted 4 | . 3 1 Heat Transferred 4238 | . 3062 1176 Parts Sabotaged . | . . . Parts Stolen . | . . . Parts Stripped . | . . . Power Chain Reactions . | . . . Missiles Intercepted . | . . . Alert | -11 -10 -10 ------- Run | Scr Mat Min Peak Influence 530 | . 530 176 Initial 131 | . . 131 Average 287 | . 337 134 Maximum Alert Level 2 | . 2 . Low Security (%) 31 | . 9 100 Level 1 56 | . 74 . Level 2 12 | . 16 . Level 3 . | . . . Level 4 . | . . . Level 5 . | . . . High Security . | . . . Max Security . | . . . Squads Dispatched 8 | . 8 . Investigation 5 | . 5 . Extermination . | . . . Reinforcement 3 | . 3 . Assault . | . . . Garrison . | . . . Intercept . | . . . Searches Triggered . | . . . Construction Impeded . | . . . Haulers Reinforced . | . . . Active Scanning Responses . | . . . Cargo Convoy Interrupts . | . . . Stealth | -11 -10 -10 --------- Run | Scr Mat Min Distress Signals 5 | . 4 1 Communications Jammed . | . . . Distress Signals . | . . . Times Spotted 46 | . 40 6 Peak Tracking Total 8 | . 8 4 Tactical Retreats 5 | . 4 1 Traps | -11 -10 -10 ------- Run | Scr Mat Min Traps Triggered 3 | . 3 . Indirectly . | . . . Trap Hack Attempts . | . . . Triggered . | . . . Disarmed . | . . . Reprogrammed . | . . . Reused . | . . . Traps Extracted . | . . . Installed . | . . . Triggered . | . . . Machines | -11 -10 -10 ---------- Run | Scr Mat Min Machines Disabled . | . . . Max in Single Turn . | . . . Machines Sabotaged . | . . . Garrisons Compromised . | . . . Overloaded Fab Kills . | . . . Hacking | -11 -10 -10 --------- Run | Scr Mat Min Machines Accessed 7 | . 7 . Terminals 5 | . 5 . Fabricators . | . . . Repair Stations . | . . . Recycling Units 2 | . 2 . Scanalyzers . | . . . Garrison Access . | . . . Total Hacks 12 | . 12 . Successful 5 | . 5 . Failed 7 | . 7 . Catastrophic 3 | . 3 . Database Lockouts . | . . . Manual 10 | . 10 . Terminals 10 | . 10 . Fabricators . | . . . Repair Stations . | . . . Recycling Units 2 | . 2 . Scanalyzers . | . . . Garrison Access . | . . . Terminal Hacks 3 | . 3 . Robot Analysis 2 | . 2 . Recall Investigation 1 | . 1 . Fabricator Hacks . | . . . Repair Station Hacks . | . . . Recycling Unit Hacks . | . . . Scanalyzer . | . . . Garrison Access Hacks . | . . . Unauthorized Hacks 2 | . 2 . Terminals . | . . . Fabricators . | . . . Repair Stations . | . . . Recycling Units 2 | . 2 . Tunnel 2 | . 2 . Scanalyzers . | . . . Garrison Access . | . . . Data Cores Recovered . | . . . Used . | . . . Hacking Detections 5 | . 5 . Full Trace Events 2 | . 2 . Feedback Events 1 | . 1 . Corruption 1 | . 1 . Feedback Blocked . | . . . Robot Schematics Acquired . | . . . Robots Built . | . . . Authchips . | . . . Time . | . . . Total Robot Build Rating . | . . . Part Schematics Acquired . | . . . Parts Built . | . . . Authchips . | . . . Time . | . . . Total Part Build Rating . | . . . Parts Repaired . | . . . Time . | . . . Parts Recycled . | . . . Recycled Matter . | . . . Retrieved Matter . | . . . Retrieved Components . | . . . Parts Scanalyzed . | . . . Part Schematics Acquired . | . . . Parts Damaged . | . . . Bothacking | -11 -10 -10 ------------ Run | Scr Mat Min Used RIF Installer . | . . . Robots Hacked . | . . . Non-combat . | . . . Combat . | . . . Robot Hacks Applied . | . . . Relay Couplers Released . | . . . Fabnet Peak Effective % . | . . . Robots Rewired . | . . . Allies Hacked . | . . . Hacks Repelled . | . . . Allies | -11 -10 -10 -------- Run | Scr Mat Min Total Allies . | . . . Largest Group . | . . . Highest-Rated Group . | . . . Highest-Rated Ally . | . . . Total Orders . | . . . Ally Attacks . | . . . Total Damage . | . . . Kills . | . . . Allies Corrupted . | . . . Allies Melted . | . . . Intel | -11 -10 -10 ------- Run | Scr Mat Min Robot Analysis Total 2 | . 2 . Derelict Logs Recovered 1 | . . 1 Drone Launches . | . . . Drone Recoveries . | . . . Exploration | -11 -10 -10 ------------- Run | Scr Mat Min Turns Passed 1771 | . 1336 435 Spaces Moved 770 | 1 622 147 Core . | . . . Treads 407 | . 260 147 Legs 160 | 1 159 . Wheels 203 | . 203 . Hover . | . . . Flight . | . . . Fastest Speed 105 | 120 105 240 Average Speed 179 | 120 165 240 Slowest Speed 240 | 120 240 240 Overloaded Moves . | . . . Propulsion Burnouts . | . . . Robots Hopped . | . . . Cave-ins Triggered . | . . . Exploration Rate (%) 44 | 2 87 44 Regions Visited 2 Branch Regions 1 Pre-discovered Areas 3 | . 2 1 Known Exits Taken . | . . . Unknown Exits Taken 2 | 1 1 . Scrap Searched . | . . . Spaces Dug . | . . . Terrain Destroyed . | . . . Melee . | . . . Projectile . | . . . AOE . | . . . Terrain Rammed . | . . . Walls Destroyed . | . . . Machines Disabled . | . . . Actions | -11 -10 -10 --------- Run | Scr Mat Min Total 953 | . 768 185 Wait 35 | . 35 . Move 768 | . 621 147 Hop . | . . . Pick Up 11 | . 7 4 Fast Attach 4 | . 4 . Attach 4 | . 3 1 Detach 1 | . 1 . Swap 6 | . 6 . Drop 1 | . 1 . Fire 123 | . 90 33 Melee . | . . . Ram . | . . . Kick . | . . . Crush . | . . . Escape Stasis . | . . . Rewire . | . . . Trap . | . . . Miscellaneous . | . . . Route ------- -11/Scrapyard -10/Materials (discovered 4 exits: [*Mat x3] / [*Min]) -10/Mines History --------- Turn | Location | Event 1 | -11/Scrapyard | Discovered new exit (range 0) 1 | -11/Scrapyard | Entered Materials 269 | -10/Materials | Discovered new exit (range 16) 307 | -10/Materials | Build established: Mutant 322 | -10/Materials | Discovered new exit (range 16) 520 | -10/Materials | Discovered new exit (range 11) 683 | -10/Materials | Lost 4 parts (1p2n1w) 1078 | -10/Materials | Discovered new exit (range 15) 1337 | -10/Materials | Entered Mines 1586 | -10/Mines | Core integrity fell below 50% 1748 | -10/Mines | Excavation squad dispatched 1748 | -10/Mines | A large section of the Mines collapsed 1757 | -10/Mines | Core integrity fell below 20% 1772 | -10/Mines | Destroyed by as-86444 with Assembled Blade Last Messages --------------- 01676_ R-06 Scavenger collects Lgt. Ion Engine. 01735_ System corrupted: Matter fused (-10). 01748_ Derelict Log crushed. 01748_ G-34 Mercenary crushed by falling debris. 01748_ R-06 Scavenger crushed by falling debris. 01748_ R-06 Scavenger system corrupted by crushing effect. 01748_ Scrap crushed. 01748_ G-47 Trooper crushed by falling debris. 01748_ G-47 Trooper destroyed. 01748_ 10 Matter crushed. 01748_ ALERT: Suspicious cave-in, suspected derelict activity in mines. Dispatching escorted excavation squad. 01750_ System corrupted: Med. Laser failed to cycle. 01751_ Sml. Laser destroyed. 01752_ Ion Engine destroyed. 01755_ Heat Sink destroyed. 01757_ Lgt. Treads destroyed. 01761_ as-46511 destroyed. 01771_ Destroyed Asb. Hover Unit. 01771_ as-86444 suffers critical hit (Burn). Map ----- +----------------------------------------------------+ | ??????????????# ##??# #??????# | | ??????????????## ### ###???## ##?#### | | ???????????????######?#######??????## ## | | ???????????????????????????????????##% | | ???????????????????????????????????# | | ???????????????????????????????????# | | ???????????????????????????????????# ##### | | ???????????????????????????????????## ##????? | | ????????????????????????????????????#### ##?????? | | ???????????????????????????????????????# ###????? | | ???????????????????????????????????????# ##???? | | ???????????????????????????????????????# #???? | | ???????????????????????????????????????## #???? | | ????????????????????????????????????????# #???? | | ???????????????????????????????????????## #???? | | ???????????????????????????????????????# #???? | | ????????????????????????###????????????# ##???? | | ???????????????????????? #????????????## #????? | | ????????????????????????# #?????????????# #????? | | ????????????????????????# #????????????## #????? | | ????????????????????????# #???????????## #????? | | ????????????????????????# ############# #????? | | ???????????####?????????# ##????? | | ?????????? = $ ?????# ################ #?????? | | ??????????? $% ####??????????????? #?????? | | ??????????????????# #@#??????????????? #?????? | | ??????????????????## #a%##?????????????? #?????? | | ???????????????????### ##;##??????????????##?????? | | ?????????????????????## ####?????????????????????? | | ??????????????????????# #?????????????????????? | | ??????????????????????## #?????????????????????? | | ???????????????????????## ##?????????????????????? | | ????????????????????????# #??????????????????????? | | ????????????????????????# #??????????????????????? | | ????????????????????????? ???????????????????????? | | ????????????????????????? ???????????????????????? | | ????????????????????????? ???????????????????????? | | ?????????????????????????#???????????????????????? | | ?????????????????????????????????????????????????? | | ?????????????????????????????????????????????????? | | ?????????????????????????????????????????????????? | | ?????????????????????????????????????????????????? | | | | | | | | | | | | | | | | | +----------------------------------------------------+ Best States ------------- Heat Dissipation 35 Energy Generation 10 Energy Capacity 250 Matter Stores 300 Matter Capacity 300 Sight Range 16 Terrain Scan Density 10 Evasion (%) 55 Recoil Reduction 2 Item Schematics ----------------- None Robot Schematics ------------------ None Fabricated ------------ Nothing Alien Tech Used ----------------- None Achievements -------------- None Challenges ------------ None Game ------ Seed ForceDefenseAutogun Manual? 0 Play Time 00:11:40 Cumulative 326.6 hours Start 2022.06.17 @ 15:55:10 End 2022.06.17 @ 16:19:36 Sessions 1 Manual Loads 0 Difficulty Rogue Special Mode None Game No. 405 Rogue 404 Adventurer 0 Explorer 1 Win Type - Total 9 Types 6/0/1/2/0/0/0/0/0 Lore% 72 Gallery% 82 Achievement% 61 Wizard Run 0 Options --------- ASCII 0 Keyboard 1 Movement Vi Keybinds 0 Fullscreen 1 Font 18/SmallcapsGlow Map View 76x50 Tactical HUD 1 Map Filters NONE Filters NONE Steam 1 RUN: 051c2c75-536c-49fb-a7ef-69a799c3a57a